{"text_format":"2","workbook":"xlsx","n_sheets":1,"sheets":["ANEXO II"],"not_rendered":{"charts":0,"images":0,"macros":0,"external_links":0,"defined_names":1,"comments":0,"pivot_tables":0},"unopened":[],"bounds":{"document_bytes":16777216,"sheet_cells":100000,"run_cost":"one","rows_first":2000,"rows_last":500,"rows_between":2000,"halvings":0,"cell_chars":16384,"cell_head_chars":4096},"cells_cut":0,"cells_raw":0,"read":"whole","date_system":"1900"}

{"sheet":"ANEXO II","index":0,"n_rows":189,"n_cols":11,"rows_kept":189,"cut":false,"hidden":false,"merged":[[0,0,0,10],[185,3,186,3],[3,10,5,10],[6,10,8,10],[9,10,11,10],[12,10,14,10],[38,10,39,10],[40,10,41,10],[53,10,54,10],[55,10,56,10],[173,7,175,7],[176,7,178,7],[173,3,175,3],[176,3,178,3],[173,10,175,10],[176,10,178,10],[82,3,83,3],[42,10,44,10],[27,3,29,3],[30,3,31,3],[19,10,20,10],[27,10,29,10],[45,10,47,10],[40,3,41,3],[38,3,39,3],[173,0,175,0],[176,0,178,0],[173,1,175,1],[176,1,178,1],[173,2,175,2],[176,2,178,2],[126,10,127,10],[128,10,129,10],[33,10,34,10],[35,10,36,10],[72,2,73,2],[74,2,75,2],[72,10,73,10],[74,10,75,10],[89,10,90,10],[91,10,92,10],[136,10,138,10],[139,10,141,10],[142,10,144,10],[145,10,147,10],[148,10,150,10],[151,10,153,10],[154,10,156,10],[157,10,159,10],[148,7,150,7],[151,7,153,7],[151,3,153,3],[171,0,172,0],[171,2,172,2],[171,1,172,1],[171,10,172,10],[171,3,172,3],[171,7,172,7],[169,2,170,2],[169,3,170,3],[169,7,170,7],[169,10,170,10],[169,1,170,1],[169,0,170,0],[157,7,159,7],[154,0,156,0],[157,0,159,0],[154,1,156,1],[157,1,159,1],[154,2,156,2],[157,2,159,2],[154,3,156,3],[157,3,159,3],[45,0,47,0],[45,7,47,7],[45,2,47,2],[48,1,49,1],[48,0,49,0],[48,7,49,7],[82,2,83,2],[82,1,83,1],[82,0,83,0],[82,7,83,7],[19,3,20,3],[24,7,26,7],[21,3,23,3],[24,3,26,3],[21,1,23,1],[89,2,90,2],[91,2,92,2],[89,1,90,1],[91,1,92,1],[89,3,90,3],[91,3,92,3],[42,7,44,7],[48,3,49,3],[42,3,44,3],[45,3,47,3],[51,3,52,3],[45,1,47,1],[188,0,188,8],[1,4,2,4],[1,3,2,3],[1,2,2,2],[1,1,2,1],[1,0,2,0],[1,8,2,8],[1,9,2,9],[185,2,186,2],[185,1,186,1],[3,2,5,2],[17,2,18,2],[17,1,18,1],[19,2,20,2],[3,0,5,0],[6,0,8,0],[3,1,5,1],[6,1,8,1],[19,0,20,0],[19,7,20,7],[27,0,29,0],[27,7,29,7],[19,1,20,1],[1,10,2,10],[17,10,18,10],[17,0,18,0],[1,5,2,6],[6,7,8,7],[3,7,5,7],[6,3,8,3],[3,3,5,3],[6,2,8,2],[9,0,11,0],[12,0,14,0],[12,1,14,1],[9,2,11,2],[12,2,14,2],[9,3,11,3],[12,3,14,3],[9,7,11,7],[12,7,14,7],[17,7,18,7],[9,1,11,1],[17,3,18,3],[27,1,29,1],[21,0,23,0],[27,2,29,2],[21,2,23,2],[24,10,26,10],[30,1,31,1],[30,0,31,0],[30,7,31,7],[30,10,31,10],[30,2,31,2],[24,2,26,2],[24,1,26,1],[24,0,26,0],[33,2,34,2],[35,2,36,2],[33,1,34,1],[33,0,34,0],[35,0,36,0],[35,1,36,1],[33,7,34,7],[35,7,36,7],[35,3,36,3],[33,3,34,3],[38,0,39,0],[40,0,41,0],[38,2,39,2],[40,2,41,2],[38,1,39,1],[40,1,41,1],[38,7,39,7],[40,7,41,7],[42,2,44,2],[42,1,44,1],[42,0,44,0],[48,10,49,10],[51,1,52,1],[51,0,52,0],[51,7,52,7],[51,10,52,10],[51,2,52,2],[48,2,49,2],[59,0,61,0],[59,1,61,1],[59,7,61,7],[59,10,61,10],[59,2,61,2],[53,2,54,2],[55,2,56,2],[53,1,54,1],[53,0,54,0],[55,1,56,1],[55,0,56,0],[55,3,56,3],[53,3,54,3],[53,7,54,7],[55,7,56,7],[59,3,61,3],[62,10,63,10],[64,10,65,10],[66,0,68,0],[66,1,68,1],[66,7,68,7],[66,10,68,10],[66,2,68,2],[64,2,65,2],[62,2,63,2],[62,1,63,1],[64,1,65,1],[62,0,63,0],[64,0,65,0],[62,7,63,7],[64,7,65,7],[66,3,68,3],[64,3,65,3],[62,3,63,3],[82,10,83,10],[76,1,78,1],[76,0,78,0],[76,7,78,7],[76,10,78,10],[76,2,78,2],[74,3,75,3],[72,3,73,3],[74,7,75,7],[72,7,73,7],[72,1,73,1],[74,1,75,1],[72,0,73,0],[74,0,75,0],[76,3,78,3],[93,7,94,7],[93,10,94,10],[95,2,96,2],[93,2,94,2],[93,0,94,0],[89,7,90,7],[91,7,92,7],[93,1,94,1],[93,3,94,3],[95,1,96,1],[95,0,96,0],[95,7,96,7],[95,10,96,10],[89,0,90,0],[91,0,92,0],[100,2,102,2],[100,1,102,1],[100,0,102,0],[100,7,102,7],[100,10,102,10],[100,3,102,3],[106,7,107,7],[108,7,109,7],[106,10,107,10],[108,10,109,10],[103,3,104,3],[106,3,107,3],[108,3,109,3],[103,2,104,2],[103,1,104,1],[103,0,104,0],[106,2,107,2],[108,2,109,2],[106,1,107,1],[108,1,109,1],[106,0,107,0],[108,0,109,0],[110,3,111,3],[110,1,111,1],[110,0,111,0],[110,7,111,7],[110,10,111,10],[114,7,116,7],[117,7,119,7],[114,10,116,10],[117,10,119,10],[114,3,116,3],[117,3,119,3],[114,2,116,2],[117,2,119,2],[114,1,116,1],[117,1,119,1],[114,0,116,0],[117,0,119,0],[110,2,111,2],[120,2,121,2],[120,1,121,1],[120,0,121,0],[120,7,121,7],[120,10,121,10],[120,3,121,3],[126,1,127,1],[126,0,127,0],[128,0,129,0],[128,1,129,1],[126,2,127,2],[128,2,129,2],[126,3,127,3],[126,7,127,7],[128,7,129,7],[128,3,129,3],[134,2,135,2],[134,0,135,0],[134,7,135,7],[134,10,135,10],[134,1,135,1],[136,3,138,3],[139,3,141,3],[136,0,138,0],[139,0,141,0],[136,1,138,1],[139,1,141,1],[136,2,138,2],[139,2,141,2],[136,7,138,7],[139,7,141,7],[160,2,162,2],[160,1,162,1],[163,1,165,1],[163,2,165,2],[160,7,162,7],[163,7,165,7],[160,10,162,10],[163,10,165,10],[142,0,144,0],[142,1,144,1],[145,1,147,1],[145,0,147,0],[142,2,144,2],[145,2,147,2],[142,3,144,3],[145,3,147,3],[148,3,150,3],[148,0,150,0],[151,0,153,0],[148,1,150,1],[151,1,153,1],[148,2,150,2],[151,2,153,2],[154,7,156,7],[1,7,2,7],[179,10,181,10],[185,0,186,0],[185,7,186,7],[185,10,186,10],[21,7,23,7],[21,10,23,10],[103,7,104,7],[103,10,104,10],[179,2,181,2],[179,1,181,1],[179,0,181,0],[179,7,181,7],[166,2,167,2],[166,1,167,1],[166,0,167,0],[142,7,144,7],[145,7,147,7],[166,7,167,7],[166,10,167,10],[160,3,162,3],[163,3,165,3],[160,0,162,0],[163,0,165,0]]}
["PLANILHA DE ESPECIFICAÇÕES TÉCNICAS, QUANTITATIVOS E PREÇOS"]
["ITEM","CATMAT","ESPECIFICAÇÕES","COTA DECRETO","UNID","QUANTITATIVO POR LOCAL (ESTADO)",null,"QUANTITATIVO TOTAL","VALOR UNITÁRIO (R$)","VALOR TOTAL (R$)","VALOR DO ITEM (R$)"]
[]
[1,150787,"Aerador De Pás para Piscicultura, trifásico com potência mínima de 1,5cv. Garantia: 12 meses ","Principal","und","DF",7,30,3921.5,{"$f":"G4*I4","v":27450.5},{"$f":"SUM(J4:J6)","v":117645}]
[{"$nulls":4},"und","GO",16,null,3921.5,{"$f":"G5*I5","v":62744}]
[{"$nulls":4},"und","MT",7,null,3921.5,27450.5]
[2,150787,"Aerador De Pás para Piscicultura, trifásico com potência mínima de 1,5cv. Garantia: 12 meses","Reserva – ME/EPP","und","DF",3,10,3921.5,11764.5,{"$f":"J7+J8+J9","v":39215}]
[{"$nulls":4},"und","GO",5,null,3921.5,19607.5]
[{"$nulls":4},"und","MT",2,null,3921.5,7843]
[3,150902,"Alevinos, tilápia, revertidos sexualmente, 3 a 6cm","Principal","milheiro","DF",20,1470,323.33333333333331,6466.6666666666661,{"$f":"SUM(J10:J12)","v":475300}]
[{"$nulls":4},"milheiro","GO",1080,null,323.33333333333331,349200]
[{"$nulls":4},"milheiro","MT",370,null,323.33333333333331,119633.33333333333]
[4,150902,"Alevinos, tilápia, revertidos sexualmente, 3 a 6cm","Reserva – ME/EPP","milheiro","DF",20,490,323.33333333333331,6466.6666666666661,{"$f":"J13+J14+J15","v":158433.33333333331}]
[{"$nulls":4},"milheiro","GO",350,null,323.33333333333331,113166.66666666666]
[{"$nulls":4},"milheiro","MT",120,null,323.33333333333331,38800]
[5,286132,"Artêmia para alimentação inicial de pós-larvas, saco 1kg","Exclusiva","kg","GO",24,24,541.45666666666671,12994.960000000001,{"$f":"J16","v":12994.960000000001}]
[6,411615,"Autoclave, material aço inox, tipo horizontal, modelo gravitacional, operação automática, digital, característica adicional sistemas de secagem e segurança,volume câmara  de 30 a 50 l, composição sensores temperatura e pressão, alarmes, outros componentes com 3 bandejas, 1 porta. Garantia: 12 meses","Exclusiva","und","GO",1,1,4910.4399999999996,4910.4399999999996,{"$f":"J17","v":4910.4399999999996}]
[7,150734,"Avental,  Medidas aprox.: 120x70cm. Características: modelo forrado, tipo impermeável PVC, cor branca, com tiras de amarrar fixas.","Exclusiva","und","GO",25,40,12.17,304.25,{"$f":"J18+J19","v":486.8}]
[{"$nulls":4},"und","MT",15,null,12.17,182.55]
[8,150748,"Balança eletrônica de precisão, capacidade mínima 2010 g, com microprocessador, possui tara subtrativa, mostrador digital de cristal líquido. Funções: pesagem simples, contagem de peças, porcentagem absoluta, porcentagem relativa, determinação de densidade, verificação de peso, cálculo estatístico, pesagem de animais vivos e função básica (incorpora contagem de peças e porcentagens absoluta e relativa).  Garantia: 12 meses","Exclusiva","und","DF",1,2,3376.3666666666663,3376.3666666666663,{"$f":"J20+J21","v":6752.7333333333327}]
[{"$nulls":4},"und","GO",1,null,3376.3666666666663,3376.3666666666663]
[9,150748,"Balança Plataforma Digital   -  Capacidade mínima de 150 Kg, divisão 50 g, em aço inox, com coluna, gabinete de plástico injetado, com indicação de sobrecarga, com bateria com indicador de carga, back light e alimentação 110 e 220 volts.  Garantia: 12 meses","Principal","und","DF",8,60,1022.8333333333334,8182.666666666667,{"$f":"SUM(J22:J24)","v":61369.999433333331}]
[{"$nulls":4},"und","GO",35,null,1022.8333333333334,35799.166666666672]
[{"$nulls":4},"und","MT",17,null,1022.8333,17388.166099999999]
[10,150749,"Balança Plataforma Digital   -  Capacidade mínima de 150 Kg, divisão 50 g, em aço inox, com coluna, gabinete de plástico injetado, com indicação de sobrecarga, com bateria com indicador de carga, back light e alimentação 110 e 220 volts.  Garantia: 12 meses","Reserva – ME/EPP","und","DF",2,20,1022.8333,2045.6666,{"$f":"J25+J26+J27","v":20456.665999999997}]
[{"$nulls":4},"und","GO",15,null,1022.8333,15342.4995]
[{"$nulls":4},"und","MT",3,null,1022.8333,3068.4998999999998]
[11,43192,"Balança digital com gancho -  Utilizada em pesca esportiva, capacidade  mínima de 50 kg, a bateria, display com, no mínimo,  4 dígitos , gancho em inox, com fita métrica. ","Exclusiva","und","DF",10,80,85.333333333333329,853.33333333333326,{"$f":"SUM(J28:J30)","v":6826.6666666666661}]
[{"$nulls":4},"und","GO",50,null,85.333333333333329,4266.6666666666661]
[{"$nulls":4},"und","MT",20,null,85.333333333333329,1706.6666666666665]
[12,459743,"Balança eletrônica -  Capacidade pesagem 15 kg, voltagem 110/220, características adicionais computadorizada, divisão de 5 g, bandeja opcional,  tipo painel cristal líquido. Garantia: 12 meses","Exclusiva","und","GO",25,40,721.14333333333343,18028.583333333336,{"$f":"J31+J32","v":28845.733333333337}]
[{"$nulls":4},"und","MT",15,null,721.14333333333343,10817.150000000001]
[13,150787,"Balde equipamento/acessório piscicultura, para limpeza e/ou manejo de incubadora de reprodução de peixes (30L), Tela removível malha de 250 microns em aço inox","Exclusiva","und","GO",3,3,919.5,2758.5,{"$f":"J33","v":2758.5}]
[14,150787,"Balsa de manejo e despesca, equipamento/acessório piscicultura,formato em U, plataforma 7m x 4,5m e 2 passarelas laterais de 1,5m com estrutura metálica de 4 m de pé direito em estrutura metálica e cobertura. Com guincho para alavancar os tanques. Com flutuadores e assoalho em chapa e chapa de alumínio de 3mm naval.","Principal","und","GO",23,30,85600,1968800,{"$f":"SUM(J34:J35)","v":2568000}]
[{"$nulls":4},"und","MT",7,null,85600,599200]
[15,150788,"Balsa de manejo e despesca, equipamento/acessório piscicultura,formato em U, plataforma 7m x 4,5m e 2 passarelas laterais de 1,5m com estrutura metálica de 4 m de pé direito em estrutura metálica e cobertura. Com guincho para alavancar os tanques. Com flutuadores e assoalho em chapa e chapa de alumínio de 3mm naval.","Reserva – ME/EPP","und","GO",7,10,85600,599200,{"$f":"J36+J37","v":856000}]
[{"$nulls":4},"und","MT",3,null,85600,256800]
[16,436700,"Banho maria digital universal 220v 30 litros - medidas internas 20 x 50 x 30 -medidas externas 31 x 53 x 33, chapa de aço carbono com tratamento anti-corrosivo, sendo parte externa em pintura epóxi, cuba sem emendas ou soldas em aço inox. Tampa pingadeira e base perfurada em aço inox, Controlador digital microprocessado com sistema PID, autotuning e duplo display de 4 dígitos. Garantia: 12 meses\n","Exclusiva","und","GO",1,1,3015.6666666666665,3015.6666666666665,{"$f":"J38","v":3015.6666666666665}]
[17,89826,"Barco de alumínio 6 metros – Comprimento mínimo total de 6 metros, largura máxima da boca de 1,40m, capacidade para motorização de 25HP. Lotação mínima de 04 pessoas.","Principal","und","GO",20,30,5636.666666666667,112733.33333333334,{"$f":"SUM(J39:J40)","v":169100}]
[{"$nulls":4},"und","MT",10,null,5636.666666666667,56366.666666666672]
[18,89827,"Barco de alumínio 6 metros – Comprimento mínimo total de 6 metros, largura máxima da boca de 1,40m, capacidade para motorização de 25HP. Lotação mínima de 04 pessoas.","Reserva – ME/EPP","und","GO",5,10,5636.666666666667,28183.333333333336,{"$f":"J41+J42","v":56366.666666666672}]
[{"$nulls":4},"und","MT",5,null,5636.666666666667,28183.333333333336]
[19,296349,"Berçário para alevinagem  –  Material tela em poliéster resistente raios ultravioletas, tipo bolsão, formato losangular abertura 5mm, dimensões 1,80 x 1,80 x 1,10, comedouros  fabricados em pvc, malha 0,5 a 0,7mm, altura 70cm.","Principal","und","DF",4,120,525.94499999999994,2103.7799999999997,{"$f":"SUM(J43:J45)","v":63113.399999999994}]
[{"$nulls":4},"und","GO",84,null,525.94499999999994,44179.38]
[{"$nulls":4},"und","MT",32,null,525.94499999999994,16830.239999999998]
[20,296350,"Berçário para alevinagem  –  Material tela em poliéster resistente raios ultravioletas, tipo bolsão, formato losangular abertura 5mm, dimensões 1,80 x 1,80 x 1,10, comedouros  fabricados em pvc, malha 0,5 a 0,7mm, altura 70cm.","Reserva – ME/EPP","und","DF",2,40,525.94499999999994,1051.8899999999999,{"$f":"SUM(J46:J48)","v":21037.8}]
[{"$nulls":4},"und","GO",30,null,525.94499999999994,15778.349999999999]
[{"$nulls":4},"und","MT",8,null,525.94500000000005,4207.5600000000004]
[21,19607," Barraca para feira livre completa, dimensões mínimas 2,00m (frente) x 1,50m (lateral), altura 2,00m, estrutura tubular desmontável, galvanizada, com balcão superior e inferior, lona nos 03 lados e na parte superior, cobertura com avanço frente e traz. Logomarca da Codevasf estampada/pintada nas cores azul, branca e verde na lona da frente (canto inferior direito, a 15cm da borda) e no avanço da parte superior (canto direito, a 3,0cm da borda), nas dimensões 19,5cm x 75,0cm e 6,5cm x 25,0cm, respectivamente. ","Exclusiva","und","GO",25,40,669.51666666666665,16737.916666666668,{"$f":"J49+J50","v":26780.666666666668}]
[{"$nulls":4},"und","MT",15,null,669.51666666666665,10042.75]
[22,395320,"\nBebedouro água, tipo industrial, características adicionais 3 torneiras baixa pressão/ temperatura 4ºc a 9ºc, material gabinete aço inox e poliuretano injetado, capacidade água 100 l, material corpo aço inoxidável.  Garantia: 12 meses\n","Exclusiva","und","GO",1,1,2166.6333333333332,2166.6333333333332,{"$f":"J51","v":2166.6333333333332}]
[23,60151,"Bombona,  polietileno de alta densidade,\ncom capacidade  200 l, com tampa removível e rosqueável,","Exclusiva","und","GO",50,80,204.61666666666665,10230.833333333332,{"$f":"J52+J53","v":16369.333333333332}]
[{"$nulls":4},"und","MT",30,null,204.61666666666665,6138.4999999999991]
[24,42366,"Bóia Sinalização/Amarração,   40 a 45 cm de diâmetro em formato cônico, recheada com espuma de poliuretano, rotomoldada em polietileno de media densidade, resistente à corrosão e deterioração quando expostos à luz solar, na cor amarela.","Principal","und","GO",225,300,202.25666666666666,45507.75,{"$f":"SUM(J54:J55)","v":60677}]
[{"$nulls":4},"und","MT",75,null,202.25666666666666,15169.25]
[25,42367,"Bóia Sinalização/Amarração,   40 a 45 cm de diâmetro em formato cônico, recheada com espuma de poliuretano, rotomoldada em polietileno de media densidade, resistente à corrosão e deterioração quando expostos à luz solar, na cor amarela.","Reserva – ME/EPP","und","GO",75,100,202.25666666666666,15169.25,{"$f":"J56+J57","v":20225.6675}]
[{"$nulls":4},"und","MT",25,null,202.2567,5056.4174999999996]
[26,292149,"Botijão criogênico, capacidade 35 a 40L, capacidade armazenamento 6 canecas","Exclusiva","und","GO",2,2,4793.333333333333,9586.6666666666661,{"$f":"J58","v":9586.6666666666661}]
[27,292149,"Botijão criogênico tipo Dry Shipper, capacidade aproximada 3,5L, capacidade armazenamento 1 caneca","Exclusiva","und","GO",2,2,3871.3666666666663,7742.7333333333327,{"$f":"J59","v":7742.7333333333327}]
[28,150756,"Caixa d’água 1000 litros, polietileno, média densidade, travamento da tampa de simples encaixe","Exclusiva","und","DF",10,160,202.76999999999998,2027.6999999999998,{"$f":"J60+J61+J62","v":32443.200000000001}]
[{"$nulls":4},"und","GO",100,null,202.76999999999998,20277]
[{"$nulls":4},"und","MT",50,null,202.76999999999998,10138.5]
[29,150756,"Caixa de transporte peixes/alevinos (1.000 l),  com mangueira micro perfurada a laser, regulador de pressão (fluxômetro e manômetro) e calha para descarga, fabricado em fibra de vidro, registro, isolamento térmico, com tampa superior e inferior, ferragem em aço inox","Exclusiva","und","DF",1,2,10549.14,10549.14,{"$f":"J63+J64","v":21098.28}]
[{"$nulls":4},"und","GO",1,null,10549.14,10549.14]
[30,150756,"Caixa de transporte peixes/alevinos (400 l), com mangueira micro perfurada a laser, regulador de pressão (fluxômetro e manômetro) e calha para descarga, fabricado em fibra de vidro, registro, isolamento térmico, com tampa superior e inferior, ferragem em aço inox","Exclusiva","und","DF",1,2,6609.0533333333333,6609.0533333333333,{"$f":"J65+J66","v":13218.106666666667}]
[{"$nulls":4},"und","GO",1,null,6609.0533333333333,6609.0533333333333]
[31,373317,"Caixa térmica 75 litros , Fabricada em material poliuretano expandido, capacidade 60 litros, tampa articulada, trinco embutido, alça dupla e dreno.","Exclusiva","und","DF",6,86,184.54,1107.24,{"$f":"J67+J68+J69","v":15870.439999999999}]
[{"$nulls":4},"und","GO",50,null,184.54,9227]
[{"$nulls":4},"und","MT",30,null,184.54,5536.2]
[32,216960,"Cal virgem, material óxido cálcio, cor branca, apresentação pó (saco de 20 kg)","Exclusiva","sc","GO",60,60,31.563333333333333,1893.8,{"$f":"J70","v":1893.8}]
[33,402953,"Calcário dolomítico, aspecto físico:pó, composição:prnt  de 80 - 90% (saco de50 kg)","Exclusiva","sc","GO",45,45,160.87,7239.1500000000005,{"$f":"J71","v":7239.1500000000005}]
[34,411380,"Câmara de contagem, tipo Neubauer Dupla Melhorada Espelhada","Exclusiva","unid","GO",2,2,329.81,659.62,{"$f":"J72","v":659.62}]
[35,214879,"Caminhão com Baú Frigorífico, 0 km, ano de fabricação corrente, diesel, potência mínima do motor de 150 CV, capacidade de carga útil mais carroceria de 2.100 kg, direção hidráulica, embreagem de acionamento hidráulico, ar condicionado. Baú tipo frigorífico em fibra de vidro na cor branca, com isolamento térmico em poliuretano, termômetro na porta traseira, portas traseira e lateral com dupla borracha de vedação, assoalho tipo sanduíche com revestimento interno em alumínio canaletado. Comprimento de 2,8m, volume mínimo de 9m³ e que ajuste adequadamente ao chassi; capacidade de resfriamento de -10ºC e funcionamento de modo acoplado ou elétrico.  O 1º emplacamento em favor da Codevasf, com taxas e impostos quitados. Logomarca da CODEVASF silkada em local visível. Garantia mínima de 12 meses.","Principal","unid","GO",20,30,236000,4720000,{"$f":"SUM(J73:J74)","v":7080000}]
[{"$nulls":4},"unid","MT",10,null,236000,2360000]
[36,214879,"Caminhão com Baú Frigorífico, 0 km, ano de fabricação corrente, diesel, potência mínima do motor de 150 CV, capacidade de carga útil mais carroceria de 2.100 kg, direção hidráulica, embreagem de acionamento hidráulico, ar condicionado. Baú tipo frigorífico em fibra de vidro na cor branca, com isolamento térmico em poliuretano, termômetro na porta traseira, portas traseira e lateral com dupla borracha de vedação, assoalho tipo sanduíche com revestimento interno em alumínio canaletado. Comprimento de 2,8m, volume mínimo de 9m³ e que ajuste adequadamente ao chassi; capacidade de resfriamento de -10ºC e funcionamento de modo acoplado ou elétrico.  O 1º emplacamento em favor da Codevasf, com taxas e impostos quitados. Logomarca da CODEVASF silkada em local visível. Garantia mínima de 12 meses.","Reserva – ME/EPP","unid","GO",5,10,236000,{"$f":"G75*I75","v":1180000},{"$f":"J75+J76","v":2360000}]
[{"$nulls":4},"unid","MT",5,null,236000,{"$f":"G76*I76","v":1180000}]
[37,52698,"Carrinho mão, material caçamba chapa aço galvanizado, chassi ferro, pés ferro, tipo travessa suporte dianteiro caçamba, quantidade roda 1,  pneu  com 3,2 pol de diâmetro, espessura caçamba 5 mm, comprimento eixo 25 cm, comprimento 80 cm, largura 62 cm, altura 20 cm.","Exclusiva","unid","DF",10,40,114.93666666666667,1149.3666666666668,{"$f":"J77+J78+J79","v":4597.4666666666672}]
[{"$nulls":4},"unid","GO",20,null,114.93666666666667,2298.7333333333336]
[{"$nulls":4},"unid","MT",10,null,114.93666666666667,1149.3666666666668]
[38,418925,"Centrífuga, tipo para tubos, ajuste digital, c/ painel de controle, programável, volume até 15 ml, capacidade até 16 unidades, rotação 4000 - 5000 rpm, temporização temporizador até 99 min, adicional segurança tampa aberta, alarme desbalanceamento.  Garantia: 12 meses","Exclusiva","unid","GO",1,1,3356.6633333333334,3356.6633333333334,{"$f":"J80","v":3356.6633333333334}]
[39,414379,"Cilindro gás, material aço, tipo gás: oxigênio, 3m3  (20 l)","Exclusiva","unid","GO",1,1,882.9666666666667,882.9666666666667,{"$f":"J81","v":882.9666666666667}]
[40,414379,"Cilindro gás, material aço, tipo gás: oxigênio, 10m3 (50 l) ","Exclusiva","unid","GO",1,1,1310,1310,1310]
[41,374339,"Colete salva-vidas classe 3, 110kg, canga, com apito","Exclusiva","unid","GO",180,240,36.9,6642,{"$f":"J83+J84","v":8856}]
[{"$nulls":4},"unid","MT",60,null,36.9,2214]
[42,103764,"Compressor de ar, motor elétrico, com proteção térmica, registro de saída de ar, deslocamento teórico (pcm) / (litros/min): 10 / 283, potência (cv): 2; pressão máxima (libras/pol²) : 125 a 140; tensão (v): 220; volume do reservatório (litros): 93. Garantia: 12 meses","Exclusiva","unid","GO",1,1,1739.9633333333334,1739.9633333333334,{"$f":"J85","v":1739.9633333333334}]
[43,389764,"Desinfetante a base de Monopersulfato de Potássio para utensílios do laboratório (500g)","Exclusiva","unid","GO",20,20,182.96,3659.2000000000003,{"$f":"J86","v":3659.2000000000003}]
[44,294510,"Destilador água, capacidade 5 l/h, voltagem 127/220 v, características adicionais desligamento automático na falta d’água; lâmpada, material aço inoxidável, tipo pilsen","Exclusiva","unid","GO",1,1,1572.6666666666667,1572.6666666666667,1572.6666666666667]
[45,444399,"Espectrofotômetro digital, Sistema óptico: simples feixe, grade 1200 linhas/mm Faixa espectral: 190 - 1000nm Largura da banda: 2 - 4nm Precisão de banda: ± 1 nm Repetibilidade de banda: 0.5 nm Definição de comprimento de onda: Auto Precisão fotométrica: ± 0.5%T Repetibilidade fotométrica: 0.3%T Faixa fotométrica: -0.3A, 0-200%T Dispersão de Luz: = 0.3%T Estabilidade: ± 0.002A/h a 500 nm Display: LCD  Suporte de cubeta padrão: 4 posições 10 mm Saída: Porta USD e porta para impressora Lâmpada: Lâmpada tungstênio e D2, Dimensão: 420x280x180 mm, Acompanha: 04 CUBETAS DE VIDRO 1 CM- 02 CUBETA DE QUARTZO. Manual de instrução, garantia 12meses.","Exclusiva","unid","GO",1,1,15655,15655,15655]
[46,354816,"Extrato de  Hipófise de peixes  carpas padronizadas","Exclusiva","g","GO",10,10,1406.6666666666667,14066.666666666668,14066.666666666668]
[47,150391,"Fábrica de gelo 2t/dia - máquina fabricar gelo tipo escama, capacidade 2 toneladas/dia, com instalação","Principal","unid","GO",20,30,101950,2039000,{"$f":"SUM(J90:J91)","v":3058500}]
[{"$nulls":4},"unid","MT",10,null,101950,1019500]
[48,150391,"Fábrica de gelo 2t/dia - máquina fabricar gelo tipo escama, capacidade 2 toneladas/dia, com instalação","Reserva – ME/EPP","unid","GO",5,10,101950,509750,{"$f":"J92+J93","v":1019500}]
[{"$nulls":4},"unid","MT",5,null,101950,509750]
[49,334673,"Faca lâmina aço inoxidável, material cabo plástico, tamanho 10 pol, aplicação cortar carne, cor cabo branca","Exclusiva","unid","GO",50,80,38.770000000000003,1938.5000000000002,{"$f":"J94+J95","v":3101.6000000000004}]
[{"$nulls":4},"unid","MT",30,null,38.770000000000003,1163.1000000000001]
[50,37680,"Freezer horizontal capacidade 477 A 530L, quantidade tampas 2, cor branca, tensão alimentação bivolt, , com termostato, dreno frontal, puxador ergonômico com fechadura de segurança e manual em português, função de congelamento rápido, caixa\ninterna em aço zincado,  dupla função: permite seleção de uso como freezer\n(temperaturas negativas) ou refrigerador (temperaturas próximas a 0ºC),  Garantia mínima: 12 meses","Exclusiva","unid","GO",25,40,1829.2066666666667,45730.166666666664,{"$f":"J96+J97","v":73168.266666666663}]
[null,null,null,"Exclusiva","unid","MT",15,null,1829.2066666666667,27438.100000000002]
[51,296196,"Garrafa de Van Dorn (2  a 5 L),Espessura da parede do acrílico: 5mm. Dimensões: 100 de diâmetro x360mm de comprimento. Disparador em aço carbono com pintura eletrostática e mensageiro em aço inox. Tampa vedação em borracha siliconada azul. Saída de água com mangueira de silicone. Acompanha 15 metros de cabo 100% polipropileno trançado de 5 mm. ","Exclusiva","unid","GO",1,1,2122.2933333333335,2122.2933333333335,{"$f":"J98","v":2122.2933333333335}]
[52,76473,"Gerador de energia a diesel cabinado partida elétrica, refrigerado a ar, com potência de 7 KVA e potência contínua de 6,5 Kva. monofásico  tanque com capacidade de 14-16 litros, Bivolt","Exclusiva","unid","GO",1,1,8683.81,8683.81,{"$f":"J99","v":8683.81}]
[53,150787,"Incubadoras  equipamento/acessório piscicultura, para ovos de peixes (200L), Fabricada em  Polietileno de media densidade ou fibra de vidro,  , Polietileno de media densidade ,Tela  300 micra, removível de aço inox , Tripé de aço carbono (desmontável) ","Exclusiva","unid","G0",14,14,2000,28000,28000]
[54,351228,"Kit Colorimétrico para piscicultura de água doce   análises de no mínimo seguintes parâmetros: potencial hidrogeniônico (pH), oxigênio dissolvido, nitrogênio amoniacal, nitrito, transparência, alcalinidade total,  dureza total, temperatura. Disco de Sechi","Exclusiva","unid","DF",10,40,1069.3,10693,{"$f":"SUM(J101:J103)","v":42772}]
[{"$nulls":4},"unid","GO",20,null,1069.3,21386]
[{"$nulls":4},"unid","MT",10,null,1069.3,10693]
[55,411362,"Lanterna  a prova d'água, com bateria  recarregável e carregador, bivolt, lâmpadas 12 leds","Exclusiva","unid","GO",50,80,78.816666666666663,3940.833333333333,{"$f":"J104+J105","v":6305.333333333333}]
[{"$nulls":4},"unid","MT",30,null,78.816666666666663,2364.5]
[56,441644,"Leitor e coletor de dados de microchip de identificação de animais,  com memória. Par leitura de vários tipos de microchips, incluindo 2x12mm.","Exclusiva","unid",1,1,1,1180,1180,{"$f":"J106","v":1180}]
[57,411987,"Luva anti-corte malha de aço inox, fechamento ajustável através de presilhas metálicas, aplicação contra cortes","Exclusiva","par","GO",50,80,195.96333333333334,9798.1666666666661,{"$f":"J107+J108","v":15677.066666666666}]
[{"$nulls":4},"par","MT",30,null,195.96333333333334,5878.9000000000005]
[58,397422,"Luva de procedimento descartável , látex, tamanho M, esterilidade não esterilizada, características adicionais antialérgico, tipo ambidestra, tipo uso descartável (caixa 100 unidades)","Exclusiva","cx","GO",50,80,17.66,883,{"$f":"J109+J110","v":1412.8}]
[{"$nulls":4},"cx","MT",30,null,17.66,529.79999999999995]
[59,318426,"Luva de Segurança tricotada em três fios de algodão e poliéster na cor branca, pigmentos em pvc antiderrapantes na palma e face palmar dos dedos, punho com elastano, acabamento em overloque.","Exclusiva","par","GO",300,400,2.97,891.00000000000011,{"$f":"J111+J112","v":1188}]
[{"$nulls":4},"par","MT",100,null,2.97,297]
[60,239828,"Máquina de fabricar gelo tipo cubo, material gabinete aço inoxidável, voltagem 220 volt, capacidade de produção 50 kg/dia. Garantia:12 meses","Exclusiva","und","GO",1,1,5323.21,5323.21,{"$f":"J113","v":5323.21}]
[61,358113,"Mangueira porosa difusora  para piscicultura (aeração),Vazão: 10 a 12 m³ / metro linear/ hora, pressão de trabalho: 0,5 bar (constante), Diâmetro interno: 1'', Diâmetro externo: 1 1/2\"","Exclusiva","und","GO",30,30,43.326666666666661,1299.7999999999997,{"$f":"J114","v":1299.7999999999997}]
[62,150296,"Medidor multiparâmetro portátil - Estação multiparâmentro de análise de água: pH, condutividade, salinidade, oxigênio dissolvido e temperatura, com sondas/eletrodos (pH, condutividade, salinidade, oxigênio dissolvido e temperatura), 2 Kits de membranas, Frascos de soluções para calibração, 1 Maleta para transporte. Garantia medidor: 24 meses, sonda: 6 meses. ","Principal","und","DF",8,32,3741.9599999999996,29935.679999999997,{"$f":"J115+J116+J117","v":119742.71999999999}]
[{"$nulls":4},"und","GO",16,null,3741.9599999999996,59871.359999999993]
[{"$nulls":4},"und","MT",8,null,3741.9599999999996,29935.679999999997]
[63,150296,"Medidor multiparâmetro portátil - Estação multiparâmentro de análise de água: pH, condutividade, salinidade, oxigênio dissolvido e temperatura, com sondas/eletrodos (pH, condutividade, salinidade, oxigênio dissolvido e temperatura), 2 Kits de membranas, Frascos de soluções para calibração, 1 Maleta para transporte. Garantia medidor: 24 meses, sonda: 6 meses. ","Reserva – ME/EPP","und","DF",3,10,3741.9599999999996,11225.88,{"$f":"J118+J119+J120","v":37419.599999999999}]
[{"$nulls":4},"und","GO",5,null,3741.9599999999996,18709.8]
[{"$nulls":4},"und","MT",2,null,3741.96,7483.92]
[64,117196,"Mesa manipulação , preparação alimentos: constituída em chapa inox tipo aisi 304,dimensões aproximadas de 2,00 x 0,70 x 0,85 m. pés em tubo de aço inox ","Exclusiva","und","GO",25,40,1094.5899999999999,27364.749999999996,{"$f":"J121+J122","v":43783.599999999991}]
[{"$nulls":4},"und","MT",15,null,1094.5899999999999,{"$f":"G122*I122","v":16418.849999999999}]
[65,434787,"Microchip 2x12mm, aplicação: para utilização em animais","Exclusiva","und","GO",300,300,10.9,3270,{"$f":"J123","v":3270}]
[66,440762,"Microscópio. Luz transmitida com sistema ótico de correção infinita (ICS); Estativa e todas as engrenagens em metal; Tubo binocular com inclinação de 30º rotação de 360º; Par de oculares focalizáveis 10x/18 Br. com tratamento antifungo, trava porparafusos; ponteiro em uma das oculares; Distância interpupilar de 48 a 75 mm; Revólver reverso quatro objetivas; Conjunto de objetivas planas-acromáticas: Objetiva \"\"Plan-Achromat\"\" 4x/0,10; Objetiva \"\"Plan-Achromat\"\" 10x/0,25; Objetiva \"\"Plan-Achromat\"\" 40x/0,65 retrátil; Objetiva \"\"Plan-Achromat\"\" 100x/1,25 retrátil - imersão a óleo; Botão bilateral para focalizações macrométrica e micrométrica e escala micrométrica à esquerda; ajuste grosso de 4 mm por volta e ajuste fino de 0,3 mm por volta; deslocamento total de 15 mm; Platina mecânica com dimensões 140 x 135 mm, acionamento à direita e porta-objeto; Charriot com movimento XY graduado e limitador do movimento Z, evitando quebra de lâminas; deslocamento total de 75 mm no eixo X e 30 mm no eixo Y; Condensador fixo tipo Abbe N.A. 0,9/1,25; diafragma íris; compartimento para adaptar futuramente, aneis de fase e de campo escuro; Controle de intensidade luminosa incorporado ao microscópio e acoplado à função liga/desliga, que obriga a redução da intensidade antes do desligamento, prolongando a vida útil do LED ou da lâmpada; Duas opções de iluminação já inclusas: e lâmpada halógena 6 V / 30 W pré-centralizados, controle de intensidade luminosa e sistema de troca de LED/lâmpada protegido por parafusos - ferramenta inclusa; Escalas em LEDs nas laterais, indicadoras de intensidade luminosa, que facilita observar à distância, se o microscópio foi deixado ligado; Fonte de 100...240 V AC / 50...60 Hz / 30 VA com três adaptadores paradiferentes tipos de tomadas (bivolt automático); Tratamento antifungo nas oculares, tubo e objetivas; Compartimento de LED e lâmpada halógena; Opçãode futuramenteacoplarcomponentes para contraste de fase, campo escuro e fluorescência. Garantia: 12 meses","Exclusiva","und","GO",1,1,6494.46,6494.46,{"$f":"J124","v":6494.46}]
[67,440762,"Microscópio.Estereomicroscópio. Sistema ótico de Greenough com ângulo estereoscópico de 11°;Zoom manual de 5:1 (0,8 x a 4,0 x) com botões para controle dos dois lados; Clickstops em zoom de 0,8 x, 1 x, 2 x, 3 x e 4 x ;Distância livre de trabalho de 110 mm; Tubo binocular com ângulo de inclinação de 45°, com ajuste interpupilar entre 55 e 75 mm; Encaixe para oculares com 30 mm de diâmetro e campo visual máximo de 23 mm; Utiliza suporte para o corpo com 76 mm de diâmetro; Interface com diâmetro de 66 mm para iluminadores; Rosca M52 para lentes frontais ou analisador; Iluminação vertical LED integrada, para estativas KEDU / LAB / MAT ou controlador K LED; Oculares focalizáveis de 10 x / 23 Br; Caboespiral RJ12 Estativa K LAB; Base com L 190 x P 310 x A 95 mm; Superfície para trabalho L 160 x P 195 mm; Diâmetro de 84 mm para encaixe de platinas e 45 mm para polarizadores em iluminação transmitida; Coluna com 250 mm, controle de foco macrométrico, alça para transporte e faixa de movimentação vertical de 145 mm; Suporte para corpo de Stemi com 76 mm de diâmetro, com capacidade para suportar até 5 Kg, ajuste da intensidade da fricção domovimento vertical ( foco ); Iluminação transmitida com LED, para campo claro, campo escuro e luz oblíqua, com espelho giratório e com movimento vertical; 2 soquetes para iluminação vertical integrada e iluminadores K LED; Controles separados parailuminação transmitida erefletida, lida / desliga / intensidade; Spot duplo de iluminação K LED; Spot duplo para iluminação refletida, em braços tipo pescoço de ganso; 2 x rosca M24 x 0,5 para polarizador; Para estativas K EDU / LAB / MAT.  Garantia: 12 meses\n\n","Exclusiva","unid","GO",1,1,11618.4,11618.4,{"$f":"J125","v":11618.4}]
[68,150807,"Motobomba centrífuga de eixo horizontal, multiestágio, dotada de motor elétrico monofásico - 3500rpm, sucção 1\" x recalque 1\", tensão: monofásica bivolt (127 v ou 220 v),vazão máxima: 6m3/h, pressão máxima: 42,6 mca, potência: 1 cv. Garantia: 12 meses","Exclusiva","unid","GO",1,1,1950.34,1950.34,{"$f":"J126","v":1950.34}]
[69,67555," Motor de popa,  15 hp, 2 tempos, motor de partida manual, incluindo: tanque de combustível com capacidade mínima de 2 4litros com mangueira, jogo de ferramentas, cabo de partida de emergência.","Principal","unid","GO",23,31,8397.7199999999993,193147.56,{"$f":"SUM(J127:J128)","v":260329.32}]
[{"$nulls":4},"unid","MT",8,null,8397.7199999999993,67181.759999999995]
[70,67555,"Motor de popa,  15 hp, 2 tempos, motor de partida manual, incluindo: tanque de combustível com capacidade mínima de 2 4litros com mangueira, jogo de ferramentas, cabo de partida de emergência.","Reserva – ME/EPP","unid","GO",8,10,8397.7199999999993,67181.759999999995,{"$f":"J129+J130","v":83977.2}]
[{"$nulls":4},"unid","MT",2,null,8397.7199999999993,16795.439999999999]
[71,372155,"Nitrogênio líquido, aspecto físico incolor, inodoro, altamente refrigerado, número de referência química cas 7727-37-9","Exclusiva","L","GO",300,300,10.333333333333334,3100,{"$f":"J131","v":3100}]
[72,150364,"Palhetas estéreis transparentes para envase de sêmen ou embriões de 0,50ml,  equipamento/acessório animal, pacote 2000 unidades","Exclusiva","pct","GO",2,2,1489.5633333333333,2979.1266666666666,{"$f":"J132","v":2979.1266666666666}]
[73,150718,"Ração para peixes 40 a 45%PB alimentação carnívoros, 2-3mm","Exclusiva","sc (25kg)","GO",110,110,134.5,14795,14795]
[74,150718,"Ração em pó para alimentação das pós-larvas 52 a 55%PB","Exclusiva","sc (25kg)","GO",58,58,140.27666666666667,8136.0466666666671,8136.0466666666671]
[75,150718,"Ração para peixes   45% - microalevino, 0,8 a 1,0 mm","Exclusiva","sc (25kg)","DF",25,85,206.25,5156.25,{"$f":"J135+J136","v":17531.25}]
[null,null,null,"Exclusiva","sc (25kg)","GO",60,null,206.25,12375]
[76,150718,"Ração para peixes   40 - 45% - onívaros, extrusada 45% PB, granulometria 1 a 2 mm, ","Principal","sc (25kg)","DF",60,1859,121.49666666666667,7289.8,{"$f":"SUM(J137:J139)","v":225862.30333333334}]
[{"$nulls":4},"sc (25kg)","GO",1379,null,121.49666666666667,167543.90333333335]
[{"$nulls":4},"sc (25kg)","MT",420,null,121.49666666666667,51028.6]
[77,150718,"Ração para peixes   40 - 45% - onívaros, extrusada 45% PB, granulometria 1 a 2 mm, ","Reserva – ME/EPP","sc (25kg)","DF",20,619,121.49666666666667,2429.9333333333334,{"$f":"J140+J141+J142","v":75206.436666666676}]
[{"$nulls":4},"sc (25kg)","GO",459,null,121.49666666666667,55766.97]
[{"$nulls":4},"sc (25kg)","MT",140,null,121.49666666666667,17009.533333333333]
[78,150718,"Ração para peixes  36% -  onívaros, extrusada 36% PB, granulometria 2 a 4 mm","Principal","sc (25kg)","DF",120,3666,74.070000000000007,8888.4000000000015,{"$f":"SUM(J143:J145)","v":271540.62000000005}]
[{"$nulls":4},"sc (25kg)","GO",2721,null,74.070000000000007,201544.47000000003]
[{"$nulls":4},"sc (25kg)","MT",825,null,74.070000000000007,61107.750000000007]
[79,150718,"Ração para peixes  36% -  onívaros, extrusada 36% PB, granulometria 2 a 4 mm","Reserva – ME/EPP","sc (25kg)","DF",40,1222,74.070000000000007,2962.8,{"$f":"J146+J147+J148","v":90513.540000000008}]
[{"$nulls":4},"sc (25kg)","GO",907,null,74.070000000000007,67181.490000000005]
[{"$nulls":4},"sc (25kg)","MT",275,null,74.070000000000007,20369.250000000004]
[80,150718,"Ração para peixes 32% –  onívaros, extrusada 32% PB, granulometria 4 a 6 mm","Principal","sc (25kg)","DF",384,11558,69.53,{"$f":"I149*G149","v":26699.52},{"$f":"J149+J150+J151","v":803627.74}]
[{"$nulls":4},"sc (25kg)","GO",8399,null,69.53,{"$f":"I150*G150","v":583982.47}]
[{"$nulls":4},"sc (25kg)","MT",2775,null,69.53,{"$f":"I151*G151","v":192945.75}]
[81,150718,"Ração para peixes 32% –  onívaros, extrusada 32% PB, granulometria 4 a 6 mm","Reserva – ME/EPP","sc (25kg)","DF",127,3852,69.53,8830.31,{"$f":"J152+J153+J154","v":267829.56}]
[{"$nulls":4},"sc (25kg)","GO",2800,null,69.53,194684]
[{"$nulls":4},"sc (25kg)","MT",925,null,69.53,{"$f":"G154*I154","v":64315.25}]
[82,150718,"Ração para peixes  32% 6 a 8 mm - onívaros, extrusada 32% PB, granulometria 6 a 8 mm","Principal","sc (25kg)","DF",1920,56640,57.140000000000008,109708.80000000002,{"$f":"SUM(J155:J157)","v":3236409.6000000006}]
[{"$nulls":4},"sc (25kg)","GO",40860,null,57.140000000000008,2334740.4000000004]
[{"$nulls":4},"sc (25kg)","MT",13860,null,57.140000000000008,791960.40000000014]
[83,150718,"Ração para peixes  32% 6 a 8 mm - onívaros, extrusada 32% PB, granulometria 6 a 8 mm","Reserva – ME/EPP","sc (25kg)","DF",640,18880,57.140000000000008,36569.600000000006,{"$f":"J158+J159+J160","v":1078803.2000000002}]
[{"$nulls":4},"sc (25kg)","GO",13620,null,57.140000000000008,778246.8]
[{"$nulls":4},"sc (25kg)","MT",4620,null,57.140000000000008,263986.80000000005]
[84,107298,"Rede de arrasto para alevinos (8 mm), altura 2m,  comprimento 30m","Principal","unid","DF",11,36,1670.72,18377.920000000002,{"$f":"J161+J162+J163","v":60145.920000000006}]
[{"$nulls":4},"unid","GO",17,null,1670.72,28402.240000000002]
[{"$nulls":4},"unid","MT",8,null,1670.72,13365.76]
[85,107298,"Rede de arrasto para alevinos (8 mm), altura 2m,  comprimento 30m","Reserva – ME/EPP","unid","DF",3,12,1670.72,5012.16,{"$f":"J164+J165+J166","v":20048.64}]
[{"$nulls":4},"unid","GO",6,null,1670.72,10024.32]
[{"$nulls":4},"unid","MT",3,null,1670.72,5012.16]
[86,150181,"Rede Puçá Confeccionado em formato circular com 40 a 50 cm de diâmetro cabo com 60 cm de comprimento, toda estrutura em alumínio, rede de nylon multifilamento com abertura de malha de 5 mm","Exclusiva","unid","GO",110,170,207.79333333333332,22857.266666666666,{"$f":"J167+J168","v":35324.866666666669}]
[null,null,null,"Exclusiva","unid","MT",60,null,207.79333333333332,12467.599999999999]
[87,150782,"Regulador de pressão de oxigênio, Pressão de trabalho: 200 bar, conexão em porca ABNT 218-1","Exclusiva","unid","GO",3,3,272.74333333333334,818.23,{"$f":"J169","v":818.23}]
[88,291927,"Rolo de Corda trançada, polipropileno, 18mm,100m","Principal","unid","GO",158,210,538.09,85018.22,{"$f":"J170+J171","v":112998.9}]
[{"$nulls":4},"unid","MT",52,null,538.09,27980.68]
[89,291927,"Rolo de Corda trançada, polipropileno, 18mm,100m","Reserva – ME/EPP","unid","GO",52,70,538.09,27980.68,{"$f":"J172+J173","v":37666.300000000003}]
[{"$nulls":4},"unid","MT",18,null,538.09,9685.6200000000008]
[90,150787,"Tanques-rede  3,00 x 3,00m x 3,00m ou outra dimensão que perfaça no mínimo 27m³ com pelo menos 2,8m de profundidade , confeccionados em estrutura tubular de alumínio naval de alta resistência ou aço galvanizado a fogo, fixada com parafusos inoxidáveis autotravantes, com tampa basculável em alumínio com tela com malha de 1,5mm para impedir de ataques de aves e furtos para os dois lados. Tela tipo aço inox com malha 19 mm. Acompanham comedouro para evitar a perda da ração, além de quatro flutuadores de polietileno de alta densidade, hidrodinâmicos de alta resistência com proteção contra raios UV, 3 anos de garantia, e aprovados pela Marinha do Brasil. ","Principal","unid","DF",8,1200,5625,45000,{"$f":"SUM(J174:J176)","v":6750000}]
[{"$nulls":4},"unid","GO",892,null,5625,5017500]
[{"$nulls":4},"unid","MT",300,null,5625,{"$f":"G176*I177","v":1687500}]
[91,150787,"Tanques-rede  3,00 x 3,00m x 3,00m ou outra dimensão que perfaça no mínimo 27m³ com pelo menos 2,8m de profundidade , confeccionados em estrutura tubular de alumínio naval de alta resistência ou aço galvanizado a fogo, fixada com parafusos inoxidáveis autotravantes, com tampa basculável em alumínio com tela com malha de 1,5mm para impedir de ataques de aves e furtos para os dois lados. Tela tipo aço inox com malha 19 mm. Acompanham comedouro para evitar a perda da ração, além de quatro flutuadores de polietileno de alta densidade, hidrodinâmicos de alta resistência com proteção contra raios UV, 3 anos de garantia, e aprovados pela Marinha do Brasil. ","Reserva – ME/EPP","unid","DF",2,400,5625,{"$f":"G177*I178","v":11250},{"$f":"J177+J178+J179","v":2250000}]
[{"$nulls":4},"unid","GO",298,null,5625,1676250]
[{"$nulls":4},"unid","MT",100,null,5625,562500]
[92,225210,"Tarrafa , Confeccionada em Náilon, monofilamento, com sistema de fechamento por meio de argolas, malha de 7 a 25 mm, fio 25,altura de 1,5 a 3,0 m e perímetro de 11 a 22 m     ","Exclusiva","unid","DF",15,47,414.30333333333328,6214.5499999999993,{"$f":"J180+J181+J182","v":19472.256666666664}]
[null,null,null,"Exclusiva","unid","GO",20,null,414.30333333333328,8286.0666666666657]
[null,null,null,"Exclusiva","unid","MT",12,null,414.30333333333328,4971.6399999999994]
[93,253058,"Termostatos com aquecedor para aquario ,500 Watts, 220V","Exclusiva","unid","GO",30,30,151.38,4541.3999999999996,{"$f":"J183","v":4541.3999999999996}]
[94,31895,"Transformado automático - 5000va Até 12.000 Btus, bivolt, troca de tensão 110 (127V) para 220V e de E 220V para 110 (127V) ","Exclusiva","unid","GO",1,1,153.61000000000001,153.61000000000001,{"$f":"J184","v":153.61000000000001}]
[95,409760,"Tubo de centrifugação,polipropileno, tipo fundo fundo cônico, capacidade , 15 ml. estéril, acessórios tampa rosqueável, graduação graduado, uso autoclavável, pacote  1000un","Exclusiva","unid","GO",5,5,52.73,263.64999999999998,263.64999999999998]
[96,332929,"Touca higiénica descartável,  Sanfonada, com elástico nas bordas, em Polipropileno/TNT, Pacote com 100 unidades  (caixa com 100und)","Exclusiva","cx","GO",50,80,51.803333333333342,2590.166666666667,{"$f":"J186+J187","v":4144.2666666666673}]
[{"$nulls":4},"cx","MT",30,null,51.803333333333342,1554.1000000000004]
[97,321945,"Ureia, composição química nitrogênio:46 per, apresentação:granulado, cor:branca, características adicionais:fórmula química nh2conh2, saco 50 kg","Exclusiva","sc","GO",20,20,136.08666666666667,2721.7333333333336,{"$f":"J188","v":2721.7333333333336}]
["Total",{"$nulls":9},34635751.280000001]